bitfinex/quotes_ETHUSD_20220115
["timestamp","ask_amount","ask_price","bid_price","bid_amount"]
[1642205599517,3.08016744,3313.0,3312.8,0.0022737]
[1642205599717,4.08016744,3313.0,3312.6,2.2312697]
[1642205599918,0.4533838,3312.9,3312.6,2.2312697]
[1642205600163,1.50977,3312.8,3312.6,2.2312697]
[1642205600363,1.50977,3312.8,3312.5,1.5219626]
[1642205600865,1.50977,3312.8,3312.6,0.00113684]
[1642205601063,1.50977,3312.8,3312.6,1.14715511]
[1642205601465,0.75488,3312.8,3312.6,1.14715511]
[1642205601964,0.045463,3313.0,3312.6,1.14715511]
[1642205602365,1.5550589,3312.9,3312.6,1.14715511]
[1642205602566,1.5550589,3312.9,3312.6,0.00113684]
[1642205602965,1.5550589,3312.9,3312.4,0.00227369]
[1642205603565,2.2644159,3312.9,3312.8,1.52108316]
[1642205603766,1.5550789,3312.9,3312.8,1.52108316]
[1642205604013,0.00113684,3313.0,3312.8,1.52108316]
[1642205604415,0.00113684,3313.0,3312.7,1.22996355]
[1642205604614,0.00113684,3313.0,3312.8,1.37271828]
[1642205604815,3.684e-05,3313.1,3313.0,5.35]
[1642205605313,3.684e-05,3313.1,3312.8,1.37271828]
[1642205605614,3.684e-05,3313.1,3312.8,3.95683734]
[1642205607665,3.684e-05,3313.1,3312.9,2.58411906]
[1642205607865,0.79941984,3313.2,3312.9,2.58411906]
[1642205608066,0.75395684,3313.2,3312.9,2.58411906]
[1642205608265,0.75472,3313.1,3312.9,2.58411906]
[1642205610268,3.75472,3313.1,3312.9,2.58411906]
[1642205610469,3.0,3313.1,3312.9,2.58411906]
[1642205611072,3.0,3313.1,3313.0,1.51226988]
[1642205611916,3.0,3313.1,3313.0,6.34552036]
[1642205612512,3.0,3313.1,3313.0,1.51226988]
[1642205613315,3.0,3313.1,3313.0,4.04638894]
[1642205615667,3.0,3313.1,3313.0,7.0834463]
[1642205617266,3.0,3313.1,3313.0,4.04638894]
[1642205617866,3.0,3313.1,3313.0,7.0834463]
[1642205622221,3.0,3313.7,3313.0,7.0834463]
[1642205622222,0.045463,3313.6,3313.1,7.55]
[1642205622420,3.0,3313.7,3313.2,17.68]
[1642205622669,0.00170528,3313.3,3313.2,17.98]
[1642205622969,0.00170528,3313.3,3313.2,0.3]
[1642205623170,0.00170528,3313.3,3313.1,1.1468]
[1642205623568,0.00113686,3313.2,3313.1,1.1468]
[1642205623972,0.045463,3313.6,3313.2,6.35]
[1642205624170,0.045463,3313.8,3313.2,6.65]
[1642205624370,0.00170527,3313.5,3313.2,6.65]
[1642205624769,0.00113684,3313.4,3313.2,6.65341057]
[1642205624969,0.00113684,3313.4,3313.3,5.93568315]
[1642205625172,0.00284211,3313.7,3313.6,1.47804555]
[1642205625370,1.13713169,3314.4,3314.0,1.34562373]
[1642205625570,1.13713169,3314.4,3313.6,1.47804555]
[1642205625770,0.05114723,3314.2,3313.6,1.47804555]
[1642205626173,0.00511581,3314.1,3313.6,1.47804555]
[1642205626429,0.00511581,3314.1,3314.0,1.51114371]
[1642205626621,0.045463,3314.2,3314.1,1.53609444]
[1642205626818,0.045463,3314.3,3314.0,1.51114371]
[1642205627217,0.00511581,3314.1,3314.0,1.51114371]
[1642205627617,0.00511581,3314.1,3313.9,1.51114371]
[1642205628018,0.00454738,3314.0,3313.9,1.51114371]
[1642205628216,0.00454738,3314.0,3313.9,2.66712537]
[1642205628420,0.0073895,3314.0,3313.9,1.15598166]
[1642205630578,0.0073895,3314.0,3313.9,4.58989889]
[1642205630766,0.045463,3314.7,3314.0,7.55]
[1642205630966,0.045463,3314.9,3314.2,17.68]
[1642205631167,0.045463,3315.0,3314.8,1.08854287]
[1642205631364,0.045463,3315.2,3314.9,1.19697528]
[1642205631966,0.045463,3315.2,3314.6,1.2485]
[1642205632167,0.045463,3315.1,3314.6,1.2485]
[1642205632367,0.045463,3315.0,3314.6,1.2485]
[1642205632567,0.045463,3315.0,3314.4,4.2921]
[1642205632568,0.00284212,3315.0,3314.4,4.2921]
[1642205632766,0.045463,3314.7,3314.4,4.2921]
[1642205632967,0.045463,3314.6,3314.4,4.2921]
[1642205633167,0.045463,3314.6,3314.4,6.55881556]
[1642205633366,0.045463,3314.6,3314.4,2.26671556]
[1642205634219,1.3,3314.9,3314.3,0.00113685]
[1642205634220,0.045463,3314.7,3314.3,0.00113685]
[1642205635218,1.21566437,3315.0,3314.3,0.00113685]
[1642205635420,2.72447437,3315.0,3314.3,0.00284212]
[1642205635617,0.3,3314.9,3314.3,0.00284212]
[1642205635816,0.7544665,3314.7,3314.1,0.00397896]
[1642205636018,0.75448,3314.4,3314.1,0.00397896]
[1642205636417,0.75448,3314.4,3314.2,1.32723182]
[1642205636818,0.75448,3314.4,3314.3,0.00284212]
[1642205637217,1.75448,3314.4,3314.3,0.00284212]
[1642205637670,4.5267565,3314.7,3314.3,0.00284212]
[1642205637671,0.1246737,3315.2,3314.3,0.00284212]
[1642205637871,0.0022737,3315.2,3314.3,0.00284212]
[1642205638073,0.00170527,3315.1,3314.3,0.00284212]
[1642205638472,0.00113685,3315.0,3314.3,0.00284212]
[1642205638872,1.27278435,3315.5,3314.3,0.00284212]
[1642205639072,2.32700435,3315.5,3314.3,0.00284212]
[1642205639275,0.55141054,3315.4,3314.2,0.00341054]
[1642205639474,0.7542904,3315.3,3314.3,2.58283605]
[1642205639677,0.55724212,3315.3,3314.3,2.58283605]
[1642205639872,0.1168,3315.2,3314.9,1.52669923]
[1642205640075,0.75433,3315.0,3314.9,1.52669923]
[1642205640275,0.75433,3315.0,3314.5,1.14308004]
[1642205640474,0.3,3314.9,3314.5,1.14308004]
[1642205640675,0.75546685,3315.0,3314.6,0.00113685]
[1642205640876,0.00113685,3315.0,3314.6,0.00113685]
[1642205641716,0.00113685,3315.0,3314.7,1.5581944]
[1642205642417,0.00113685,3315.0,3314.8,3.0257857]
[1642205642617,0.00113685,3315.0,3314.8,3.7798057]
[1642205643015,0.00113685,3315.0,3314.9,28.26290537]
[1642205643217,0.00113685,3315.0,3314.9,29.22360534]
[1642205644215,0.00113685,3315.0,3314.9,20.26741102]
[1642205644616,1.51052838,3315.8,3315.7,1.19292619]
[1642205644821,1.51052838,3315.8,3315.7,2.71726559]
[1642205646068,0.45753813,3316.2,3315.7,2.71726559]
[1642205646472,0.00625266,3316.1,3315.7,2.71726559]
[1642205646668,0.00625266,3316.1,3315.7,1.5243394]
[1642205646868,0.00568423,3316.0,3315.7,1.5243394]
[1642205647271,0.00511581,3315.9,3315.7,1.5243394]
[1642205647669,0.00454739,3315.8,3315.0,5.04525407]
[1642205647869,0.00454739,3315.8,3315.3,1.41283014]
[1642205648069,0.00397896,3315.7,3315.3,1.41283014]
[1642205648471,0.00341054,3315.6,3315.3,1.41283014]
[1642205648933,0.00284212,3315.5,3315.3,1.41283014]
[1642205649322,0.00227369,3315.4,3315.3,2.7264655]
[1642205652674,0.00227369,3315.4,3315.3,20.7064655]
[1642205652870,0.00227369,3315.4,3315.3,21.3886655]
[1642205653469,0.00227369,3315.4,3315.3,29.01358241]
[1642205653869,0.00227369,3315.4,3315.3,28.76338241]
[1642205654569,0.00227369,3315.4,3315.3,25.01128719]
[1642205654971,0.00227369,3315.4,3315.3,28.76338241]
[1642205655176,0.00227369,3315.4,3315.3,28.33138241]
[1642205655774,0.4421705,3316.4,3315.4,7.05]
[1642205655975,0.4421705,3316.4,3315.5,3.817641]
[1642205656173,0.00511581,3316.3,3315.5,3.817641]
[1642205656422,0.00511581,3316.3,3315.5,21.497641]
[1642205656616,0.00454739,3316.2,3315.5,21.497641]
[1642205657016,0.00397897,3316.1,3315.5,21.497641]
[1642205657420,0.00341054,3316.0,3315.7,17.68]
[1642205657622,0.00341054,3316.0,3315.8,4.10918812]
[1642205657821,0.4421705,3316.4,3315.7,19.615]
[1642205657822,0.4421705,3316.4,3316.0,17.68]
[1642205658017,0.4421705,3316.4,3316.1,3.32678928]
[1642205658218,0.00511581,3316.3,3316.2,17.68]
[1642205658418,0.00511581,3316.3,3316.2,20.87680205]
[1642205659821,1.63074878,3317.2,3316.3,6.8]
[1642205660022,0.52564839,3317.2,3316.4,0.75365]
[1642205660281,0.52564839,3317.2,3316.4,1.0412]
[1642205660282,0.00454739,3317.1,3316.4,1.0412]
[1642205660677,0.00397897,3317.0,3316.4,1.0412]
[1642205660879,0.00397897,3317.0,3316.8,1.28001406]
[1642205661077,0.00341054,3316.9,3316.8,1.28001406]
[1642205662677,0.00341054,3316.9,3316.2,1.1489]
[1642205663079,0.00284212,3316.8,3316.2,1.1489]
[1642205663478,0.0022737,3316.7,3316.2,1.1489]
[1642205663928,0.00170527,3316.6,3316.5,1.36135913]
[1642205664318,0.00170527,3316.6,3316.2,2.31522999]
[1642205664319,0.00170527,3316.6,3316.2,1.1489]
[1642205664718,0.00113685,3316.5,3316.2,1.1489]
[1642205665217,0.00341054,3316.9,3316.2,1.1489]
[1642205665620,0.00284212,3316.8,3316.2,1.1489]
[1642205666018,0.0022737,3316.7,3316.2,1.1489]
[1642205666218,0.0022737,3316.7,3316.6,1.20429403]
[1642205666418,1.555292,3317.0,3316.6,1.20429403]
[1642205666718,0.00341054,3316.9,3316.6,1.20429403]
[1642205666921,0.00341054,3316.9,3316.3,3.75209522]
[1642205667119,0.00284212,3316.8,3316.3,3.75209522]
[1642205667521,0.0022737,3316.7,3316.3,3.75209522]
[1642205667777,0.0022737,3316.7,3316.2,4.90099522]
[1642205668072,0.00170527,3316.6,3316.2,4.90099522]
[1642205668473,0.00113685,3316.5,3316.2,2.63902319]
[1642205669673,0.00113685,3316.5,3316.4,1.30942886]
[1642205670074,0.00113685,3316.5,3316.2,2.63902319]
[1642205671432,0.00113685,3316.5,3316.2,3.75281684]
[1642205674423,0.00113685,3316.5,3316.2,4.50651684]
[1642205675024,0.00113685,3316.5,3316.2,3.75281684]
[1642205678273,0.00113685,3316.5,3316.2,5.25725524]
[1642205679022,0.00113685,3316.5,3316.2,3.75281684]
[1642205679423,0.00113685,3316.5,3316.2,5.25725524]
[1642205680223,0.00113685,3316.5,3316.3,2.58153549]
[1642205680921,0.00113685,3316.5,3316.4,5.9044384]
[1642205681126,0.00113685,3316.5,3316.4,6.9582384]
[1642205681922,0.00113685,3316.5,3316.4,8.03533549]
[1642205682773,0.00113685,3316.5,3316.4,3.63533549]
[1642205683271,0.00113685,3316.5,3316.4,2.58153549]
[1642205683471,0.00113685,3316.5,3316.4,6.45435718]
[1642205684073,0.00113685,3316.5,3316.4,4.08501653]
[1642205684473,0.00113685,3316.5,3316.4,4.78841653]
[1642205685976,0.00113685,3316.5,3316.4,4.08501653]
[1642205687225,0.00113685,3316.5,3316.4,2.58153549]
[1642205688226,0.00113685,3316.5,3316.2,2.60391684]
[1642205688628,0.00113685,3316.5,3316.3,0.045463]
[1642205689428,0.00113685,3316.5,3316.3,2.62694998]
[1642205689929,0.00113685,3316.5,3316.3,3.68059998]
[1642205690370,0.00113685,3316.5,3316.3,3.38059998]
[1642205690570,0.00113685,3316.5,3316.3,2.62694998]
[1642205690771,0.00113685,3316.5,3316.4,2.58148698]
[1642205692174,0.00113685,3316.5,3316.4,4.08422186]
[1642205693175,0.00113685,3316.5,3316.4,2.58148698]
[1642205694032,0.00113685,3316.5,3316.4,4.08422186]
[1642205697537,0.00113685,3316.5,3316.3,4.08422186]
[1642205698574,0.00113685,3316.5,3316.3,2.58148698]
[1642205699875,0.00113685,3316.5,3316.4,5.845463]
[1642205700075,1.0,3317.5,3316.5,0.00720753]
[1642205700476,0.00625266,3317.4,3316.5,0.00720753]
[1642205700677,0.00625266,3317.4,3316.4,7.34819788]
[1642205700875,0.00568424,3317.3,3316.9,1.34065541]
[1642205701277,0.00511582,3317.2,3316.9,1.34065541]
[1642205701727,0.00454739,3317.1,3316.9,1.34065541]
[1642205702124,0.00397897,3317.0,3316.9,1.34065541]
[1642205702527,0.00397897,3317.0,3316.5,2.62873488]
[1642205703026,0.00341054,3316.9,3316.5,2.62873488]
[1642205703528,3.18907171,3317.7,3316.5,2.62873488]
[1642205703529,0.00284212,3316.8,3316.5,23.64712543]
[1642205703729,0.00284212,3316.8,3316.7,17.68]
[1642205703929,1.50963533,3317.7,3316.7,18.7599]
[1642205704129,1.50963533,3317.7,3317.5,0.045463]
[1642205704331,0.00738951,3317.6,3317.5,1.21647932]
[1642205704530,0.00738951,3317.6,3317.5,2.38522438]
[1642205706576,0.00738951,3317.6,3317.5,0.045463]
[1642205706777,0.00738951,3317.6,3317.0,1.2238]
[1642205707083,6.21,3317.9,3317.2,3.87211861]
[1642205707084,0.00682109,3317.5,3317.2,3.87211861]
[1642205707478,0.00625266,3317.4,3317.2,3.87211861]
[1642205707678,0.00625266,3317.4,3317.3,1.5206692]
[1642205707878,6.54948109,3317.9,3317.5,1.08791992]
[1642205708277,0.00852636,3317.8,3317.5,1.08791992]
[1642205708679,0.00795793,3317.7,3317.5,1.08791992]
[1642205709125,0.00738951,3317.6,3317.5,1.08791992]
[1642205709729,0.00738951,3317.6,3317.3,1.5206692]
[1642205710128,0.00682109,3317.5,3317.2,3.87211861]
[1642205710426,0.00625266,3317.4,3317.2,3.87211861]
[1642205710626,0.00625266,3317.4,3317.1,3.0538]
[1642205710827,0.00568424,3317.3,3317.1,4.40948154]
[1642205711227,0.00511582,3317.2,3317.1,4.40948154]
[1642205711427,0.00511582,3317.2,3317.1,5.59707363]
[1642205711625,0.00795793,3317.2,3317.1,5.59707363]
[1642205714678,0.48080003,3317.2,3317.1,5.59707363]
[1642205714886,0.95364213,3317.2,3317.1,5.59707363]
[1642205715080,0.95364213,3317.2,3317.1,20.26873663]
[1642205715479,0.95364213,3317.2,3317.1,20.56873663]
[1642205715681,6.21,3317.9,3317.2,6.65]
[1642205715880,6.21,3317.9,3317.7,0.045463]
[1642205716079,6.16,3317.9,3317.8,1.3193716]
[1642205716280,0.4605507,3318.3,3317.8,1.3193716]
[1642205716527,0.4605507,3318.3,3318.1,1.14038943]
[1642205716826,0.4605507,3318.3,3318.1,2.02968943]
[1642205717028,0.4105507,3318.3,3318.1,2.02968943]
[1642205717626,0.00734335,3318.2,3318.1,2.02968943]
[1642205719031,0.00734335,3318.2,3318.1,24.55968943]
[1642205719430,0.00734335,3318.2,3318.1,2.02968943]
[1642205721078,0.00734335,3318.2,3318.1,1.14038943]
[1642205721680,0.00734335,3318.2,3318.0,2.71892666]
[1642205721880,0.00734335,3318.2,3318.0,1.49832666]
[1642205722080,0.0022737,3318.1,3318.0,1.49832666]
[1642205723180,0.00719705,3318.2,3318.0,2.79793955]
[1642205723579,0.00719705,3318.2,3318.0,1.29961289]
[1642205726026,0.00719705,3318.2,3318.0,2.59547589]
[1642205726625,0.00719705,3318.2,3318.1,17.68]
[1642205727225,0.00719705,3318.2,3318.1,18.112]
[1642205727675,6.21,3319.6,3318.1,19.3548]
[1642205727676,1.50893288,3319.3,3318.1,19.3548]
[1642205727881,6.21,3319.6,3319.2,0.045463]
[1642205728181,1.2912471,3319.5,3319.2,0.857563]
[1642205728577,0.0073895,3319.4,3319.2,0.857563]
[1642205728778,0.0073895,3319.4,3319.2,0.8121]
[1642205728977,0.00682108,3319.3,3319.2,0.8121]
[1642205729377,0.0073895,3319.3,3319.2,0.8121]
[1642205729781,0.0073895,3319.3,3318.6,1.49282502]
[1642205729979,0.75341,3319.1,3318.6,1.49282502]
[1642205730382,0.00511581,3319.0,3318.6,1.49282502]
[1642205730778,0.00454738,3318.9,3318.6,1.49282502]
[1642205730979,0.00454738,3318.9,3318.4,7.27045983]
[1642205730980,0.00454738,3318.9,3318.4,5.03122231]
[1642205731179,0.00397896,3318.8,3318.4,1.38882231]
[1642205731441,0.00578027,3318.7,3318.3,3.3015]
[1642205731633,0.00341054,3318.7,3318.3,3.3015]
[1642205731832,0.00284211,3318.6,3318.3,3.3015]
[1642205732233,0.00227369,3318.5,3318.3,4.79918075]
[1642205732633,0.00170527,3318.4,3318.3,4.79918075]
[1642205732834,0.00170527,3318.4,3318.3,4.80841331]
[1642205733038,0.00170527,3318.4,3318.2,5.85922502]
[1642205733534,0.00113684,3318.3,3318.2,4.3664]
[1642205734135,0.00113684,3318.3,3318.1,1.49282502]
[1642205734734,0.00113684,3318.3,3318.0,2.590705]
[1642205735698,0.99825013,3318.9,3318.1,0.045463]
[1642205735894,1.29825013,3318.9,3318.1,0.04659984]
[1642205736094,0.00170527,3318.6,3318.1,0.04659984]
[1642205736296,0.00170527,3318.6,3318.3,0.045463]
[1642205736497,0.00113685,3318.5,3318.3,0.045463]
[1642205736896,6.21,3319.0,3318.3,0.045463]
[1642205736897,0.00284212,3318.8,3318.7,1.24885328]
[1642205737097,0.00284212,3318.8,3318.7,1.29431628]
[1642205738498,0.00284212,3318.8,3318.7,2.29131628]
[1642205741136,0.00284212,3318.8,3318.7,2.24585328]
[1642205741436,0.00284212,3318.8,3318.7,1.24885328]
[1642205741635,0.00284212,3318.8,3318.5,1.49282502]
[1642205742034,0.0022737,3318.7,3318.5,1.49282502]
[1642205742534,0.30625266,3319.4,3318.5,1.49282502]
[1642205742783,0.75338,3319.2,3318.5,1.28506691]
[1642205743279,0.75337,3319.0,3318.5,1.28506691]
[1642205743584,0.00341054,3318.9,3318.3,1.2254]
[1642205743980,0.00284212,3318.8,3318.3,1.2254]
[1642205744380,0.0022737,3318.7,3318.5,0.045463]
[1642205744779,0.00625266,3319.4,3318.5,0.045463]
[1642205745181,0.75327,3319.5,3318.5,0.045463]
[1642205745182,0.00568424,3319.3,3318.5,0.045463]
[1642205745380,0.00568424,3319.3,3318.7,1.53723822]
[1642205745580,0.00511581,3319.2,3318.7,1.53723822]
[1642205745780,0.00511581,3319.2,3318.3,2.71822502]
[1642205745982,1.20928617,3318.8,3318.3,2.71822502]
[1642205746190,1.20928617,3318.8,3318.4,1.49282502]
[1642205746436,0.0022737,3318.7,3318.4,1.49282502]
[1642205747232,0.0022737,3318.7,3318.2,2.98548748]
[1642205747630,0.0022737,3318.7,3318.4,0.045463]
[1642205747832,0.0022737,3318.7,3318.5,0.045463]
[1642205750378,0.7532837,3318.6,3318.5,1.53828802]
[1642205750579,0.7532837,3318.6,3318.5,1.49282502]
[1642205750978,0.7532837,3318.6,3318.5,1.53828802]
[1642205751179,0.7532837,3318.6,3318.5,0.045463]
[1642205751385,0.7532837,3318.6,3318.4,1.53828802]
[1642205751678,0.7532837,3318.6,3318.5,0.045463]
[1642205752079,0.75498897,3318.6,3318.5,0.045463]
[1642205752680,0.75498897,3318.6,3318.5,6.695463]
[1642205752879,0.75498897,3318.6,3318.5,24.375463]
[1642205753279,0.00170527,3318.6,3318.5,24.375463]
[1642205753679,0.65482207,3318.9,3318.5,24.375463]
[1642205753937,0.65482207,3318.9,3318.8,0.045463]
[1642205754328,0.65652734,3318.9,3318.8,0.045463]
[1642205756030,0.65652734,3318.9,3318.7,20.35359017]
[1642205756329,0.00113685,3318.8,3318.7,20.35359017]
[1642205758378,0.00113685,3318.8,3318.7,2.67359017]
[1642205759182,0.00113685,3318.8,3318.7,2.62812717]
[1642205759378,0.00113685,3318.8,3318.7,2.67359017]
[1642205759579,0.00113685,3318.8,3318.7,20.35359017]
[1642205760181,0.00113685,3318.8,3318.7,0.045463]
[1642205760382,0.00113685,3318.8,3318.6,1.49152758]
[1642205760580,0.45595892,3318.9,3318.6,1.49152758]
[1642205761434,0.45595892,3318.9,3318.5,20.36251004]
[1642205761832,0.45595892,3318.9,3318.6,0.00113684]
[1642205762829,0.45595892,3318.9,3318.6,2.96849243]
[1642205763030,0.45595892,3318.9,3318.7,17.68]
[1642205763233,0.7530557,3319.2,3318.9,17.68]
[1642205763431,6.21,3319.5,3319.1,17.68]
[1642205763630,0.00227369,3319.2,3319.1,18.43295]
[1642205763828,0.00227369,3319.2,3319.1,21.04681877]
[1642205764433,0.00227369,3319.2,3319.1,22.53834635]
[1642205765878,0.00227369,3319.2,3319.1,21.04681877]
[1642205766078,0.00227369,3319.2,3319.1,25.86540033]
[1642205767484,0.00227369,3319.2,3319.1,23.62616281]
[1642205768683,0.00227369,3319.2,3319.1,22.87321281]
[1642205769131,0.00227369,3319.2,3319.1,25.81899734]
[1642205771331,0.00227369,3319.2,3319.1,23.58691281]
[1642205771532,0.7529523,3319.6,3319.3,17.68]
[1642205771931,0.00170527,3319.5,3319.3,17.68]
[1642205772336,0.00113685,3319.4,3319.3,17.68]
[1642205773186,0.00113685,3319.4,3319.3,19.91214193]
[1642205773886,0.00113685,3319.4,3319.3,17.68]
[1642205774285,0.00113685,3319.4,3319.3,18.112]
[1642205774488,6.326,3321.1,3319.3,18.112]
[1642205774489,1.5056007,3320.7,3319.5,0.01368368]
[1642205774685,6.66089003,3321.1,3320.1,17.68]
[1642205774888,6.66089003,3321.1,3320.2,0.432]
[1642205775087,0.45089003,3321.1,3320.2,1.3301]
[1642205775285,0.40089003,3321.1,3320.9,1.38634512]
[1642205775490,1.1374,3321.4,3320.9,2.31214512]
[1642205775491,1.5054253,3321.0,3320.9,2.31214512]
[1642205776646,1.5054253,3321.0,3320.4,1.1328]
[1642205776846,1.5054253,3321.0,3320.3,4.47563087]
[1642205777045,0.00852635,3320.9,3320.3,4.47563087]
[1642205777245,0.7529063,3320.7,3320.3,4.47563087]
[1642205777448,0.7529063,3320.7,3320.3,1.31993087]
[1642205777645,0.00682108,3320.6,3320.3,1.31993087]
[1642205777847,0.00682108,3320.6,3320.3,2.8050494]
[1642205778048,0.00625266,3320.5,3320.3,2.8050494]
[1642205778347,0.00568424,3320.4,3320.3,2.8050494]
[1642205778947,0.00568424,3320.4,3320.3,1.31993087]
[1642205779953,0.00568424,3320.4,3320.2,4.1962]
[1642205780182,0.75862244,3320.4,3320.2,4.1962]
[1642205780382,0.00511581,3320.3,3319.9,2.72301853]
[1642205780684,0.00454739,3320.2,3319.9,1.48511853]
[1642205780881,0.00454739,3320.2,3320.1,1.39796997]
[1642205781082,1.5058692,3320.2,3320.1,1.39796997]
[1642205786337,1.5058692,3320.2,3320.0,1.48511853]
[1642205786739,0.00397897,3320.1,3320.0,1.48511853]
[1642205786938,0.00397897,3320.1,3320.0,19.16511853]
[1642205787338,0.00397897,3320.1,3320.0,20.29265927]
[1642205788189,0.00397897,3320.1,3320.0,2.61265927]
[1642205788589,0.00397897,3320.1,3320.0,9.05923336]
[1642205788991,0.00397897,3320.1,3320.0,26.73923336]
[1642205789393,0.00397897,3320.1,3320.0,25.25411483]
[1642205789593,0.00397897,3320.1,3320.0,21.38617038]
[1642205790195,0.00397897,3320.1,3320.0,25.25411483]
[1642205796384,0.00397897,3320.1,3320.0,6.44657409]
[1642205796584,0.00397897,3320.1,3320.0,0.42221119]
[1642205796585,0.04944197,3320.1,3320.0,0.42221119]
[1642205797186,0.04944197,3320.1,3319.9,2.2276778]
[1642205797187,0.80263467,3320.1,3319.9,2.2276778]
[1642205797383,0.78869868,3320.1,3319.9,2.2276778]
[1642205797584,4.85075401,3320.0,3319.9,2.2276778]
[1642205797984,1.85075401,3320.0,3319.9,2.2276778]
[1642205798288,1.85075401,3320.0,3319.5,2.5989031]
[1642205798289,2.85075401,3320.0,3319.5,2.5989031]
[1642205798484,2.60395401,3320.0,3319.5,2.5989031]
[1642205798684,1.50920162,3319.9,3319.5,1.48805972]
[1642205798935,1.80920162,3319.9,3319.5,1.48805972]
[1642205799131,0.0022737,3319.8,3319.4,1.48805972]
[1642205799531,1.8063595,3319.9,3319.4,1.48805972]
[1642205799532,0.7531598,3319.6,3319.4,1.48805972]
[1642205799732,0.7531598,3319.6,3319.4,2.62563154]
[1642205800135,0.7531598,3319.6,3319.4,1.48805972]
[1642205800736,0.7531598,3319.6,3319.5,1.48805972]
[1642205801038,1.05429665,3319.6,3319.5,1.48805972]
[1642205802436,1.05429665,3319.6,3319.3,3.65673491]
[1642205803383,3.20113685,3319.6,3319.4,2.2276778]
[1642205803783,3.95429665,3319.6,3319.4,2.2276778]
[1642205803982,3.20113685,3319.6,3319.4,2.2276778]
[1642205804783,3.95429595,3319.6,3319.4,2.2276778]
[1642205805884,3.20113685,3319.6,3319.4,2.2276778]
[1642205806090,3.20113685,3319.6,3319.5,1.4901001]
[1642205806935,3.95429125,3319.6,3319.5,1.4901001]
[1642205808334,5.27599767,3319.6,3319.5,1.4901001]
[1642205808838,3.95429125,3319.6,3319.3,2.2276778]
[1642205809535,3.95429125,3319.6,3319.4,2.2276778]
[1642205810189,3.20113685,3319.6,3319.4,2.2276778]
[1642205810386,3.20113685,3319.6,3319.5,1.49164579]
[1642205811408,3.20113685,3319.6,3319.5,2.61861805]
[1642205811586,3.20113685,3319.6,3319.5,1.49164579]
[1642205811786,3.20113685,3319.6,3319.3,1.37015904]
[1642205811986,3.20113685,3319.6,3319.4,2.2276778]
[1642205812586,3.20113685,3319.6,3319.4,3.34706596]
[1642205812987,2.90113685,3319.6,3319.4,3.34706596]
[1642205814043,2.90113685,3319.6,3319.4,2.2276778]
[1642205815537,2.90113685,3319.6,3319.5,3.63773786]
[1642205816339,2.90113685,3319.6,3319.5,2.2276778]
[1642205818684,2.90113685,3319.6,3319.5,3.75594305]
[1642205819585,2.90113685,3319.6,3319.5,6.33462836]
[1642205819786,2.90113685,3319.6,3319.5,4.80636311]
[1642205821188,2.90113685,3319.6,3319.5,2.2276778]
[1642205821835,2.90113685,3319.6,3319.5,5.0276778]
[1642205822036,2.90113685,3319.6,3319.5,2.2276778]
[1642205822837,2.90113685,3319.6,3319.5,2.57868531]
[1642205823036,1.31985604,3319.8,3319.5,2.57868531]
[1642205824240,1.0,3320.0,3319.5,2.57868531]
[1642205824438,1.0,3320.0,3319.6,2.24322522]
[1642205824638,0.00170527,3319.9,3319.6,2.24322522]
[1642205825039,0.00113685,3319.8,3319.6,2.24322522]
[1642205826087,0.00113685,3319.8,3319.6,4.82191053]
[1642205827188,0.00113685,3319.8,3319.5,2.24322522]
[1642205827687,0.00113685,3319.8,3319.7,2.57868531]
[1642205828088,1.29395757,3319.8,3319.7,2.57868531]
[1642205828489,1.29395757,3319.8,3319.6,2.24322522]
[1642205829233,1.29395757,3319.8,3319.5,2.24322522]
[1642205829833,1.29395757,3319.8,3319.7,2.57868531]
[1642205830637,5.10802647,3319.8,3319.5,2.24322522]
[1642205830836,1.8066135,3319.7,3319.5,2.24322522]
[1642205831039,2.91962076,3319.6,3319.3,3.00549086]
[1642205831337,0.3,3319.5,3319.4,0.00113685]
[1642205831539,2.88599791,3319.5,3319.4,0.00113685]
[1642205831737,3.63921071,3319.5,3319.4,0.00113685]
[1642205831940,3.67813943,3319.5,3319.4,0.00113685]
[1642205832538,4.43137943,3319.5,3319.4,0.00113685]
[1642205832986,0.75329,3319.4,3318.8,0.00454739]
[1642205833188,0.045463,3318.9,3318.8,0.00454739]
[1642205833792,2.59590951,3319.1,3318.8,0.00454739]
[1642205833988,2.59590951,3319.1,3318.7,0.00511581]
[1642205835590,0.345463,3319.3,3318.6,0.00568424]
[1642205835790,2.80557197,3319.3,3318.6,0.00568424]
[1642205835991,2.50557197,3319.3,3318.6,0.00568424]
[1642205836193,2.50557197,3319.3,3318.6,3.0111751]
[1642205836440,2.45936123,3319.3,3318.8,1.11732874]
[1642205836633,0.045463,3319.3,3318.8,1.11732874]
[1642205836834,0.7532455,3319.2,3318.9,0.00397897]
[1642205837734,2.48837868,3319.3,3318.9,0.00397897]
[1642205838536,2.48837868,3319.3,3318.7,0.00511581]
[1642205839035,2.48837868,3319.3,3318.7,3.01060667]
[1642205839438,2.48837868,3319.3,3318.8,0.00454739]
[1642205839439,3.24157998,3319.3,3318.8,0.00454739]
[1642205839637,3.27374829,3319.3,3318.8,0.00454739]
[1642205839840,3.57374829,3319.3,3318.9,2.25250946]
[1642205840288,3.57374829,3319.3,3319.2,1.50171933]
[1642205840486,5.83544347,3319.3,3319.2,1.50171933]
[1642205840685,5.08215347,3319.3,3319.2,1.50399303]
[1642205841487,5.38215347,3319.3,3319.2,1.50399303]
[1642205841686,6.38215347,3319.3,3319.2,1.50399303]
[1642205841887,0.75347,3319.1,3318.9,1.50351262]
[1642205842087,3.06807704,3319.0,3318.9,1.50351262]
[1642205842287,3.11354004,3319.0,3318.9,1.50351262]
[1642205842886,3.11354004,3319.0,3318.6,2.25250946]
[1642205843087,0.7533935,3318.8,3318.6,2.25250946]
[1642205843290,3.82728668,3318.7,3318.5,2.25250946]
[1642205843490,2.44767639,3318.6,3318.5,2.25250946]
[1642205843690,0.045463,3318.7,3318.6,2.80341054]
[1642205844434,0.045463,3318.7,3318.6,0.00341054]
[1642205844635,1.29459187,3318.7,3318.6,0.00341054]
[1642205844836,3.81527981,3318.7,3318.3,0.00511581]
[1642205845236,3.76981681,3318.7,3318.3,0.00511581]
[1642205845437,0.045463,3318.4,3318.3,0.00511581]
[1642205845636,0.045463,3318.4,3318.0,3.86834895]
[1642205845637,0.045463,3318.4,3318.2,0.00568423]
[1642205846137,0.799013,3318.4,3318.2,0.00568423]
[1642205846337,2.56734605,3318.3,3318.2,0.00568423]
[1642205846738,2.56734605,3318.3,3318.0,0.00682108]
[1642205847541,0.7535305,3318.2,3318.0,0.00682108]
[1642205847796,2.59019212,3318.1,3318.0,0.00682108]
[1642205848290,0.7535305,3318.2,3317.8,0.00795792]
[1642205848689,0.7535305,3318.2,3317.7,0.00852635]
[1642205848891,1.5070767,3318.3,3317.7,0.00852635]